Department Family,Entity,Date,Expense Type,Expense Area,Supplier,Transaction Number,AP Amount,Purchase Invoice Number
Department of Health,St. Helens&Knowsley Hospitals NHS Trust,31/12/2017,CNST contributions,CLINICAL NEGLIGENCE,,SSC NHSLA CNST,"726,524.40 ",
Department of Health,St. Helens&Knowsley Hospitals NHS Trust,31/12/2017,Computer Hardware Purch,HIS programme costs - shared services,INSIGHT DIRECT (UK) LTD,25153878,"27,624.60",3672709
Department of Health,St. Helens&Knowsley Hospitals NHS Trust,31/12/2017,Computer Maintenance,ICU NURSING WHISTON,DRAEGER MEDICAL UK LTD,25065847,"29,020.80",918332532
Department of Health,St. Helens&Knowsley Hospitals NHS Trust,31/12/2017,Computer Maintenance,HIS programme costs - shared services,SOFTCAT LTD,25246111,"62,500.00",INV01792552
Department of Health,St. Helens&Knowsley Hospitals NHS Trust,31/12/2017,Computer Maintenance,INFRASTRUCTURE TEAM,VOICE CONNECT LTD,25246141,"57,588.00",20580
Department of Health,St. Helens&Knowsley Hospitals NHS Trust,31/12/2017,Data Lines,HIS programme costs - shared services,VIRGIN MEDIA PAYMENTS LTD,24961917,"671,021.20",915528096
Department of Health,St. Helens&Knowsley Hospitals NHS Trust,31/12/2017,Data Lines,HIS programme costs - shared services,VIRGIN MEDIA PAYMENTS LTD,25232832,"51,590.61",0816763020011117
Department of Health,St. Helens&Knowsley Hospitals NHS Trust,31/12/2017,Ext Contr Laundry,WHISTON EQUIPMENT POOL,DRIVE DEVILBISS HEALTHCARE,25065792,"93,500.00",645332
Department of Health,St. Helens&Knowsley Hospitals NHS Trust,31/12/2017,Administration Fee,A + E MEDICAL STAFF WH,ST HELENS ROTA,25216246,"41,580.00",1682017
Department of Health,St. Helens&Knowsley Hospitals NHS Trust,31/12/2017,Administration Fee,A + E MEDICAL STAFF WH,LIAISON FINANCIAL SERVICES LTD,25234590,195.59,STAFFLOW19112017
Department of Health,St. Helens&Knowsley Hospitals NHS Trust,31/12/2017,Administration Fee,ACUTE MEDICAL UNIT,LIAISON FINANCIAL SERVICES LTD,25234590,562.74,STAFFLOW19112017
Department of Health,St. Helens&Knowsley Hospitals NHS Trust,31/12/2017,Administration Fee,B + P MEDICAL STAFF,LIAISON FINANCIAL SERVICES LTD,25234590,165.30,STAFFLOW19112017
Department of Health,St. Helens&Knowsley Hospitals NHS Trust,31/12/2017,Administration Fee,CARDIO-RESPIRATORY (ECG),LIAISON FINANCIAL SERVICES LTD,25234590,38.91,STAFFLOW19112017
Department of Health,St. Helens&Knowsley Hospitals NHS Trust,31/12/2017,Administration Fee,CARE OF ELDERLY MED STAFF,LIAISON FINANCIAL SERVICES LTD,25234590,630.00,STAFFLOW19112017
Department of Health,St. Helens&Knowsley Hospitals NHS Trust,31/12/2017,Administration Fee,DERMATOLOGY,LIAISON FINANCIAL SERVICES LTD,25234590,390.00,STAFFLOW19112017
Department of Health,St. Helens&Knowsley Hospitals NHS Trust,31/12/2017,Administration Fee,GENERAL SURGERY MEDICAL,LIAISON FINANCIAL SERVICES LTD,25234590,868.89,STAFFLOW19112017
Department of Health,St. Helens&Knowsley Hospitals NHS Trust,31/12/2017,Administration Fee,GENERAL SURGERY PRE OP,LIAISON FINANCIAL SERVICES LTD,25234590,325.38,STAFFLOW19112017
Department of Health,St. Helens&Knowsley Hospitals NHS Trust,31/12/2017,Administration Fee,MICROBIOLOGY MED STAFF,LIAISON FINANCIAL SERVICES LTD,25234590,122.23,STAFFLOW19112017
Department of Health,St. Helens&Knowsley Hospitals NHS Trust,31/12/2017,Administration Fee,OBS + GYNAE MEDICAL STAFF,LIAISON FINANCIAL SERVICES LTD,25234590,207.57,STAFFLOW19112017
Department of Health,St. Helens&Knowsley Hospitals NHS Trust,31/12/2017,Administration Fee,ORTHOPAEDIC MEDICAL STAFF,LIAISON FINANCIAL SERVICES LTD,25234590,752.80,STAFFLOW19112017
Department of Health,St. Helens&Knowsley Hospitals NHS Trust,31/12/2017,Administration Fee,PAEDIATRIC MEDICAL STAFF,LIAISON FINANCIAL SERVICES LTD,25234590,559.46,STAFFLOW19112017
Department of Health,St. Helens&Knowsley Hospitals NHS Trust,31/12/2017,Administration Fee,PHARMACY GENERAL,LIAISON FINANCIAL SERVICES LTD,25234590,263.61,STAFFLOW19112017
Department of Health,St. Helens&Knowsley Hospitals NHS Trust,31/12/2017,Administration Fee,RADIOGRAPHY WHISTON,LIAISON FINANCIAL SERVICES LTD,25234590,134.66,STAFFLOW19112017
Department of Health,St. Helens&Knowsley Hospitals NHS Trust,31/12/2017,Administration Fee,RESPIRATORY SNR MEDICAL,LIAISON FINANCIAL SERVICES LTD,25234590,"1,127.55",STAFFLOW19112017
Department of Health,St. Helens&Knowsley Hospitals NHS Trust,31/12/2017,Administration Fee,SEXUAL HEALTH CLINIC (GUM),LIAISON FINANCIAL SERVICES LTD,25234590,221.40,STAFFLOW19112017
Department of Health,St. Helens&Knowsley Hospitals NHS Trust,31/12/2017,Administration Fee,SOHT Blood Sciences,LIAISON FINANCIAL SERVICES LTD,25234590,173.39,STAFFLOW19112017
Department of Health,St. Helens&Knowsley Hospitals NHS Trust,31/12/2017,Administration Fee,A + E MEDICAL STAFF WH,LIAISON FINANCIAL SERVICES LTD,25234591,167.47,STAFFLOW03122017
Department of Health,St. Helens&Knowsley Hospitals NHS Trust,31/12/2017,Administration Fee,ACUTE MEDICAL UNIT,LIAISON FINANCIAL SERVICES LTD,25234591,639.54,STAFFLOW03122017
Department of Health,St. Helens&Knowsley Hospitals NHS Trust,31/12/2017,Administration Fee,B + P MEDICAL STAFF,LIAISON FINANCIAL SERVICES LTD,25234591,445.08,STAFFLOW03122017
Department of Health,St. Helens&Knowsley Hospitals NHS Trust,31/12/2017,Administration Fee,CARDIO-RESPIRATORY (ECG),LIAISON FINANCIAL SERVICES LTD,25234591,65.94,STAFFLOW03122017
Department of Health,St. Helens&Knowsley Hospitals NHS Trust,31/12/2017,Administration Fee,CARE OF ELDERLY MED STAFF,LIAISON FINANCIAL SERVICES LTD,25234591,865.13,STAFFLOW03122017
Department of Health,St. Helens&Knowsley Hospitals NHS Trust,31/12/2017,Administration Fee,DERMATOLOGY,LIAISON FINANCIAL SERVICES LTD,25234591,390.00,STAFFLOW03122017
Department of Health,St. Helens&Knowsley Hospitals NHS Trust,31/12/2017,Administration Fee,GEN MEDICINE MEDICAL STF,LIAISON FINANCIAL SERVICES LTD,25234591,327.00,STAFFLOW03122017
Department of Health,St. Helens&Knowsley Hospitals NHS Trust,31/12/2017,Administration Fee,GENERAL SURGERY MEDICAL,LIAISON FINANCIAL SERVICES LTD,25234591,209.19,STAFFLOW03122017
Department of Health,St. Helens&Knowsley Hospitals NHS Trust,31/12/2017,Administration Fee,GENERAL SURGERY PRE OP,LIAISON FINANCIAL SERVICES LTD,25234591,397.68,STAFFLOW03122017
Department of Health,St. Helens&Knowsley Hospitals NHS Trust,31/12/2017,Administration Fee,HISTOPATHOLOGY MED STAFF,LIAISON FINANCIAL SERVICES LTD,25234591,249.43,STAFFLOW03122017
Department of Health,St. Helens&Knowsley Hospitals NHS Trust,31/12/2017,Administration Fee,OBS + GYNAE MEDICAL STAFF,LIAISON FINANCIAL SERVICES LTD,25234591,310.03,STAFFLOW03122017
Department of Health,St. Helens&Knowsley Hospitals NHS Trust,31/12/2017,Administration Fee,ORTHOPAEDIC MEDICAL STAFF,LIAISON FINANCIAL SERVICES LTD,25234591,645.98,STAFFLOW03122017
Department of Health,St. Helens&Knowsley Hospitals NHS Trust,31/12/2017,Administration Fee,PHARMACY GENERAL,LIAISON FINANCIAL SERVICES LTD,25234591,222.78,STAFFLOW03122017
Department of Health,St. Helens&Knowsley Hospitals NHS Trust,31/12/2017,Administration Fee,RADIOGRAPHY WHISTON,LIAISON FINANCIAL SERVICES LTD,25234591,134.66,STAFFLOW03122017
Department of Health,St. Helens&Knowsley Hospitals NHS Trust,31/12/2017,Administration Fee,RESPIRATORY SNR MEDICAL,LIAISON FINANCIAL SERVICES LTD,25234591,800.41,STAFFLOW03122017
Department of Health,St. Helens&Knowsley Hospitals NHS Trust,31/12/2017,Administration Fee,SOHT Blood Sciences,LIAISON FINANCIAL SERVICES LTD,25234591,142.89,STAFFLOW03122017
Department of Health,St. Helens&Knowsley Hospitals NHS Trust,31/12/2017,Independent Sector,COMMUNITY SLA'S,ST HELENS ROTA,25004902,"41,580.00",1502017
Department of Health,St. Helens&Knowsley Hospitals NHS Trust,31/12/2017,Independent Sector,MARSHALLS CROSS MEDICAL CENTRE,ST HELENS ROTA,25128712,"56,747.00",1492017
Department of Health,St. Helens&Knowsley Hospitals NHS Trust,31/12/2017,Independent Sector,LLP,ST HELENS ORTHOPAEDICS,25183223,"364,797.00",026
Department of Health,St. Helens&Knowsley Hospitals NHS Trust,31/12/2017,Laboratory Chemicals,HAEM + BLOOD TRANSFUSION,SYSMEX UK LTD,24963268,"41,581.79",3049083336
Department of Health,St. Helens&Knowsley Hospitals NHS Trust,31/12/2017,Laboratory External Tests,MICROBIOLOGY DEPT,PUBLIC HEALTH ENGLAND,24985646,"33,056.47",6305565
Department of Health,St. Helens&Knowsley Hospitals NHS Trust,31/12/2017,Legal / Prof Fees,LEGAL SERVICES,HILL DICKINSON LLP,25072295,"33,909.96",10316192
Department of Health,St. Helens&Knowsley Hospitals NHS Trust,31/12/2017,Med & Surg Equip Disp,GEN MED ENDOSCOPY H2,BOSTON SCIENTIFIC LTD,25204530,"5,777.84",7161745945
Department of Health,St. Helens&Knowsley Hospitals NHS Trust,31/12/2017,Med Equip Additions,Balance Sheet,OMNICELL LTD,25104137,"54,000.00",0000004651
Department of Health,St. Helens&Knowsley Hospitals NHS Trust,31/12/2017,Miscellaneous Expenditure,PFI ENABLING WORKS,NEW HOSPITALS (ST HELENS & KNOWSLEY) LTD,24956386,"812,353.66",SIN000265
Department of Health,St. Helens&Knowsley Hospitals NHS Trust,31/12/2017,Miscellaneous Expenditure,HSDU WHISTON,SYNERGY HEALTH (UK) LTD,25056282,"161,667.06",GB002II9704220
Department of Health,St. Helens&Knowsley Hospitals NHS Trust,31/12/2017,Miscellaneous Expenditure,HSDU WHISTON,SYNERGY HEALTH (UK) LTD,25056366,"70,999.48",GB002CD970058079
Department of Health,St. Helens&Knowsley Hospitals NHS Trust,31/12/2017,Miscellaneous Expenditure,HSDU WHISTON,SYNERGY HEALTH (UK) LTD,25161287,"81,744.73",GB002CD970058277
Department of Health,St. Helens&Knowsley Hospitals NHS Trust,31/12/2017,SrvcsRecd-FoundationTrust,Balance Sheet,BRIDGEWATER COMMUNITY HEALTHCARE NHS FOUNDATION TRUST,25056276,"2,600.67",26304980
Department of Health,St. Helens&Knowsley Hospitals NHS Trust,31/12/2017,SrvcsRecd-FoundationTrust,Balance Sheet,BRIDGEWATER COMMUNITY HEALTHCARE NHS FOUNDATION TRUST,25232835,"2,600.67",26305079
Department of Health,St. Helens&Knowsley Hospitals NHS Trust,31/12/2017,"Various Supplies,",Various Departments,NHS SUPPLY CHAIN,25005061,"162,738.87",1018172127
Department of Health,St. Helens&Knowsley Hospitals NHS Trust,31/12/2017,"Various Supplies,",Various Departments,NHS SUPPLY CHAIN,25183334,"167,031.31",1018178372
Department of Health,St. Helens&Knowsley Hospitals NHS Trust,31/12/2017,"Various Supplies,",Various Departments,NHS SUPPLY CHAIN,25183446,"195,732.58",1018182360
Department of Health,St. Helens&Knowsley Hospitals NHS Trust,31/12/2017,Office Equipment Hire,NURSING ADMINISTRATION,HEALTHCARE COMMUNICATIONS UK LTD,25105513,"51,515.63",8784
Department of Health,St. Helens&Knowsley Hospitals NHS Trust,31/12/2017,Postage & Carriage,HOTEL SERVICES MGT WHIST,POSTAGE BY PHONE-PITNEY BOWES LTD,25128799,"28,013.20",73380307
Department of Health,St. Helens&Knowsley Hospitals NHS Trust,31/12/2017,Rates,RATES/WATER WHISTON,KNOWSLEY METROPOLITAN BOROUGH COUNCIL,24960608,"271,334.00",DEC179634
Department of Health,St. Helens&Knowsley Hospitals NHS Trust,31/12/2017,Rates,RATES/WATER ST HELENS,ST HELENS COUNCIL,25086920,"64,119.00",302411290DEC17
Department of Health,St. Helens&Knowsley Hospitals NHS Trust,31/12/2017,Services Received - NHSTs,CHEMICAL PATHOLOGY DEPT,ROYAL LIVERPOOL&BROADGREEN UNIVERSITY HOSPITALS NHS TRUST (THE),25004961,"18,448.39",8610075204
Department of Health,St. Helens&Knowsley Hospitals NHS Trust,31/12/2017,Services Received - NHSTs,GYNAE CYTOLOGY,ROYAL LIVERPOOL&BROADGREEN UNIVERSITY HOSPITALS NHS TRUST (THE),25004961,"3,671.34",8610075204
Department of Health,St. Helens&Knowsley Hospitals NHS Trust,31/12/2017,Services Received - NHSTs,MICROBIOLOGY DEPT,ROYAL LIVERPOOL&BROADGREEN UNIVERSITY HOSPITALS NHS TRUST (THE),25004961,"3,183.56",8610075204
Department of Health,St. Helens&Knowsley Hospitals NHS Trust,31/12/2017,SrvcsRecd-FoundationTrust,CHEMICAL PATHOLOGY DEPT,LANCASHIRE TEACHING HOSPITALS NHS FOUNDATION TRUST,24985633,"28,313.58",15305910
Department of Health,St. Helens&Knowsley Hospitals NHS Trust,31/12/2017,SrvcsRecd-FoundationTrust,OUTPATIENTS ST HELENS,BRIDGEWATER COMMUNITY HEALTHCARE NHS FOUNDATION TRUST,25056276,"23,472.50",26304980
Department of Health,St. Helens&Knowsley Hospitals NHS Trust,31/12/2017,SrvcsRecd-FoundationTrust,COMMUNITY SLA'S,NORTH WEST BOROUGHS HEALTHCARE NHS FOUNDATION TRUST,25098057,"-34,459.00",16039936
Department of Health,St. Helens&Knowsley Hospitals NHS Trust,31/12/2017,SrvcsRecd-FoundationTrust,COMMUNITY SLA'S,NORTH WEST BOROUGHS HEALTHCARE NHS FOUNDATION TRUST,25121474,"683,927.00",16039896
Department of Health,St. Helens&Knowsley Hospitals NHS Trust,31/12/2017,SrvcsRecd-FoundationTrust,CHEMICAL PATHOLOGY DEPT,LANCASHIRE TEACHING HOSPITALS NHS FOUNDATION TRUST,25152082,"32,060.72",15307319
Department of Health,St. Helens&Knowsley Hospitals NHS Trust,31/12/2017,SrvcsRecd-FoundationTrust,A + E MEDICAL STAFF WH,NORTH WEST BOROUGHS HEALTHCARE NHS FOUNDATION TRUST,25161191,"79,325.00",16039894
Department of Health,St. Helens&Knowsley Hospitals NHS Trust,31/12/2017,SrvcsRecd-FoundationTrust,OUTPATIENTS ST HELENS,BRIDGEWATER COMMUNITY HEALTHCARE NHS FOUNDATION TRUST,25232835,"23,472.50",26305079
Department of Health,St. Helens&Knowsley Hospitals NHS Trust,31/12/2017,Stocks Raw Materials,Balance Sheet,JANSSEN CILAG LTD,25190989,"27,445.68",930366832
Department of Health,St. Helens&Knowsley Hospitals NHS Trust,31/12/2017,Stocks Raw Materials,Balance Sheet,ROCHE PRODUCTS LTD,25191108,"26,368.70",1321991313
Department of Health,St. Helens&Knowsley Hospitals NHS Trust,31/12/2017,X-Ray Equipment Purchase,RADIOGRAPHY WHISTON,DIAGNOSTIC HEALTHCARE LTD,24195821,"45,600.00",205532
